fUSD/lending_fUSD_20241110
["ID","MTS","AMOUNT","RATE_DAILY","PERIOD"]
[341820123,1731239454098,-942.67,0.00013698,2]
[341820124,1731239454107,-864.71920595,0.00013698,2]
[341820125,1731239454171,-1620.39079405,0.00013698,2]
[341820126,1731239454180,-500.0,0.00013698,2]
[341820127,1731239454190,-500.0,0.00013698,2]
[341820128,1731239454203,-500.0,0.00013698,2]
[341820129,1731239454213,-942.67,0.00013698,2]
[341820130,1731239454223,-2485.11,0.00013698,2]
[341820131,1731239454232,-500.0,0.00013698,2]
[341820132,1731239454243,-500.0,0.00013698,2]
[341820133,1731239454251,-500.0,0.00013698,2]
[341820134,1731239454261,-942.90965611,0.00013698,2]
[341820135,1731239454271,-2485.11,0.00013698,2]
[341820136,1731239454280,-500.0,0.00013698,2]
[341820137,1731239454289,-500.0,0.00013698,2]
[341820138,1731239454298,-500.0,0.00013698,2]
[341820139,1731239454308,-2485.11,0.00013698,2]
[341820140,1731239454317,-500.0,0.00013698,2]
[341820141,1731239454325,-500.0,0.00013698,2]
[341820142,1731239454335,-500.0,0.00013698,2]
[341820143,1731239454344,-2485.15519976,0.00013698,2]
[341820144,1731239454354,-500.0,0.00013698,2]
[341820145,1731239454363,-500.0,0.00013698,2]
[341820146,1731239454373,-500.0,0.00013698,2]
[341820147,1731239454383,-632.25,0.00013698,2]
[341820148,1731239454393,-500.0,0.00013698,2]
[341820149,1731239454403,-500.0,0.00013698,2]
[341820150,1731239454412,-500.0,0.00013698,2]
[341820151,1731239454422,-500.0,0.00013698,2]
[341820152,1731239454431,-500.0,0.00013698,2]
[341820153,1731239454441,-500.0,0.00013698,2]
[341820154,1731239454450,-364.38697896,0.00013698,2]
[341820155,1731239454461,-500.0,0.00013698,2]
[341820156,1731239454472,-518.91185361,0.00013698,2]
[341820157,1731239454481,-192.385764,0.00013698,2]
[341820158,1731239454490,-500.0,0.00013698,2]
[341820159,1731239454500,-500.0,0.00013698,2]
[341820160,1731239454509,-500.0,0.00013698,2]
[341820161,1731239454519,-500.0,0.00013698,2]
[341820162,1731239454527,-500.0,0.00013698,2]
[341820163,1731239454536,-500.0,0.00013698,2]
[341820164,1731239454546,-500.0,0.00013698,2]
[341820165,1731239454555,-500.0,0.00013698,2]
[341820166,1731239454565,-500.0,0.00013698,2]
[341820167,1731239454574,-500.0,0.00013698,2]
[341820168,1731239454583,-500.0,0.00013698,2]
[341820169,1731239454593,-230.09164137,0.00013698,2]
[341820170,1731239454602,-615.67902272,0.00013698,2]
[341820171,1731239454612,-500.0,0.00013698,2]
[341820172,1731239454621,-500.0,0.00013698,2]
[341820173,1731239454631,-500.0,0.00013698,2]
[341820174,1731239454640,-500.0,0.00013698,2]
[341820175,1731239454649,-500.0,0.00013698,2]
[341820176,1731239454659,-500.0,0.00013698,2]
[341820177,1731239454668,-500.0,0.00013698,2]
[341820178,1731239454678,-590.02683129,0.00013698,2]
[341820179,1731239454687,-500.0,0.00013698,2]
[341820180,1731239454697,-500.0,0.00013698,2]
[341820181,1731239454706,-500.0,0.00013698,2]
[341820182,1731239454717,-500.0,0.00013698,2]
[341820183,1731239454728,-500.0,0.00013698,2]
[341820184,1731239454739,-500.0,0.00013698,2]
[341820185,1731239454750,-500.0,0.00013698,2]
[341820186,1731239454761,-500.0,0.00013698,2]
[341820187,1731239454770,-500.0,0.00013698,2]
[341820188,1731239454779,-500.0,0.00013698,2]
[341820189,1731239454788,-500.0,0.00013698,2]
[341820190,1731239454799,-500.0,0.00013698,2]
[341820191,1731239454812,-500.0,0.00013698,2]
[341820192,1731239454824,-500.0,0.00013698,2]
[341820193,1731239454834,-500.0,0.00013698,2]
[341820194,1731239454844,-500.0,0.00013698,2]
[341820195,1731239454853,-500.0,0.00013698,2]
[341820196,1731239454863,-500.0,0.00013698,2]
[341820197,1731239454872,-500.0,0.00013698,2]
[341820198,1731239454882,-500.0,0.00013698,2]
[341820199,1731239454891,-500.0,0.00013698,2]
[341820200,1731239454900,-508.10436561,0.00013698,2]
[341820201,1731239454909,-500.0,0.00013698,2]
[341820202,1731239454918,-500.0,0.00013698,2]
[341820203,1731239454927,-500.0,0.00013698,2]
[341820204,1731239454936,-634.94058703,0.00013698,2]
[341820205,1731239454945,-364.95,0.00013698,2]
[341820206,1731239454954,-500.0,0.00013698,2]
[341820207,1731239454965,-500.0,0.00013698,2]
[341820208,1731239454975,-500.0,0.00013698,2]
[341820209,1731239454985,-500.0,0.00013698,2]
[341820210,1731239454994,-500.0,0.00013698,2]
[341820211,1731239455004,-500.0,0.00013698,2]
[341820212,1731239455014,-500.0,0.00013698,2]
[341820213,1731239455024,-500.0,0.00013698,2]
[341820214,1731239455034,-500.0,0.00013698,2]
[341820215,1731239455044,-500.0,0.00013698,2]
[341820216,1731239455054,-500.0,0.00013698,2]
[341820217,1731239455063,-500.0,0.00013698,2]
[341820218,1731239455074,-500.0,0.00013698,2]
[341820219,1731239455084,-500.0,0.00013698,2]
[341820220,1731239455093,-500.0,0.00013698,2]
[341820221,1731239455102,-500.0,0.00013698,2]
[341820222,1731239455112,-500.0,0.00013698,2]
[341820223,1731239455121,-500.0,0.00013698,2]
[341820224,1731239455130,-655.81,0.00013698,2]
[341820225,1731239455140,-500.0,0.00013698,2]
[341820226,1731239455149,-500.0,0.00013698,2]
[341820227,1731239455158,-500.0,0.00013698,2]
[341820228,1731239455168,-571.8,0.00013698,2]
[341820229,1731239455177,-655.81,0.00013698,2]
[341820230,1731239455186,-500.0,0.00013698,2]
[341820231,1731239455199,-500.0,0.00013698,2]
[341820232,1731239455209,-655.81,0.00013698,2]
[341820233,1731239455218,-500.0,0.00013698,2]
[341820234,1731239455227,-655.81,0.00013698,2]
[341820235,1731239455237,-655.81,0.00013698,2]
[341820236,1731239455249,-655.81,0.00013698,2]
[341820237,1731239455259,-655.81,0.00013698,2]
[341820238,1731239455270,-655.81,0.00013698,2]
[341820239,1731239455280,-2973.8,0.00013698,2]
[341820240,1731239455290,-655.81,0.00013698,2]
[341820241,1731239455299,-2973.8,0.00013698,2]
[341820242,1731239455308,-500.0,0.00013698,2]
[341820243,1731239455318,-500.0,0.00013698,2]
[341820244,1731239455328,-655.81,0.00013698,2]
[341820245,1731239455337,-901.85,0.00013698,2]
[341820246,1731239455347,-2973.8,0.00013698,2]
[341820247,1731239455357,-500.0,0.00013698,2]
[341820248,1731239455367,-500.0,0.00013698,2]
[341820249,1731239455376,-655.81,0.00013698,2]
[341820250,1731239455386,-901.85,0.00013698,2]
[341820251,1731239455396,-2973.8,0.00013698,2]
[341820252,1731239455405,-500.0,0.00013698,2]
[341820253,1731239455414,-383.58024309,0.00013698,2]
[341820254,1731239455423,-655.81,0.00013698,2]
[341820255,1731239455433,-901.85,0.00013698,2]
[341820256,1731239455442,-2973.8,0.00013698,2]
[341820257,1731239455451,-500.0,0.00013698,2]
[341820258,1731239455462,-901.85,0.00013698,2]
[341820259,1731239455472,-655.81,0.00013698,2]
[341820260,1731239455481,-2973.8,0.00013698,2]
[341820261,1731239455491,-500.0,0.00013698,2]
[341820262,1731239455500,-901.85,0.00013698,2]
[341820263,1731239455510,-655.81,0.00013698,2]
[341820264,1731239455519,-500.0,0.00013698,2]
[341820265,1731239455528,-2973.8,0.00013698,2]
[341820266,1731239455537,-901.85,0.00013698,2]
[341820267,1731239455547,-655.81,0.00013698,2]
[341820268,1731239455556,-2973.8,0.00013698,2]
[341820269,1731239455566,-901.85,0.00013698,2]
[341820270,1731239455575,-655.81,0.00013698,2]
[341820271,1731239455584,-2973.8,0.00013698,2]
[341820272,1731239455741,-901.85,0.00013698,2]
[341820273,1731239455750,-655.81,0.00013698,2]
[341820274,1731239455759,-2973.8,0.00013698,2]
[341820275,1731239455769,-655.81,0.00013698,2]
[341820276,1731239455778,-500.0,0.00013698,2]
[341820277,1731239455788,-2973.8,0.00013698,2]
[341820278,1731239455797,-500.0,0.00013698,2]
[341820279,1731239455807,-655.81,0.00013698,2]
[341820280,1731239455816,-500.0,0.00013698,2]
[341820281,1731239455826,-901.85,0.00013698,2]
[341820282,1731239455835,-655.81,0.00013698,2]
[341820283,1731239455844,-500.0,0.00013698,2]
[341820284,1731239455854,-2973.8,0.00013698,2]
[341820285,1731239455863,-901.85,0.00013698,2]
[341820286,1731239455872,-655.81,0.00013698,2]
[341820287,1731239455881,-1856.44107503,0.00013698,2]
[341820288,1731239456152,-1117.35892497,0.00013698,2]
[341820289,1731239456164,-500.0,0.00013698,2]
[341820290,1731239456175,-901.85,0.00013698,2]
[341820291,1731239456185,-655.81,0.00013698,2]
[341820292,1731239456198,-2973.8,0.00013698,2]
[341820293,1731239456211,-500.0,0.00013698,2]
[341820294,1731239456220,-901.85,0.00013698,2]
[341820295,1731239456231,-453.11199504,0.00013698,2]
[341820296,1731239456250,-202.69800496,0.00013698,2]
[341820297,1731239456260,-55.63528769,0.00013698,2]
[341820298,1731239571612,3000.0,0.000216,30]
[341820299,1731239604349,-4834.277357,0.00012896,2]
[341820300,1731239604372,-5627.16,0.00012961,2]
[341820301,1731239604397,-452.48405057,0.00013338,2]
[341820302,1731239604421,-155.85,0.00013438,2]
[341820303,1731239604443,-156.69,0.00013488,2]
[341820304,1731239604464,-150.0,0.00013497,2]
[341820305,1731239604486,-300.0,0.00013497,2]
[341820306,1731239604508,-8323.53859243,0.00013498,2]
[341820307,1731239649618,-150.0,0.00013497,2]
[341820308,1731239649644,-14350.0,0.00013498,2]
[341820309,1731239668998,434.5726427,0.00027,120]
[341820310,1731239670783,166.475829,0.0002156,30]
[341820311,1731239904482,426.5,0.00010959,2]
[341820312,1731239919953,-500.0,0.000135,5]
[341820313,1731239933442,-500.0,0.000135,4]
[341820316,1731240072664,646.2,0.00010636,2]
[341820317,1731240265054,-150.0,0.000142,4]
[341820318,1731240284383,-163.0,0.000172,15]
[341820319,1731240284405,-242.0,0.000172,15]
[341820320,1731240304426,-500.0,0.00021917,30]
[341820321,1731240304451,-505.64100145,0.00021917,30]
[341820322,1731240304485,-8994.35899855,0.00022,30]
[341820324,1731240322300,-56089.59066541,0.00022,30]
[341820325,1731240330173,-785.36070552,0.00012418,2]
[341820326,1731240341618,-152.0,0.00021884,28]
[341820327,1731240342541,-929.17229869,0.00012418,2]
[341820328,1731240342563,-1714.53300421,0.00012444,2]
[341820329,1731240342587,-1714.53300421,0.0001247,2]
[341820330,1731240342607,-155.38,0.00012515,2]
[341820331,1731240342627,-185.8137237,0.00012518,2]
[341820332,1731240355513,-152.0,0.00021756,27]
[341820333,1731240368603,-152.0,0.00021628,26]
[341820334,1731240388141,-152.0,0.0002099,21]
[341820335,1731240430100,-820.11932526,0.00012415,2]
[341820336,1731240437138,-179.88067474,0.00012415,2]
[341820337,1731240437159,-2613.29179854,0.00012429,2]
[341820338,1731240442107,-137.70820146,0.00012429,2]
[341820339,1731240442128,-64.1862763,0.00012518,2]
[341820340,1731240442149,-32.33487229,0.0001257,2]
[341820361,1731240551435,-851.9,0.00012443,2]
[341820362,1731240551458,-300.0,0.00012465,2]
[341820363,1731240551480,-23890.0,0.00012466,2]
[341820364,1731240551501,-437.87,0.00012491,2]
[341820365,1731240551522,-5.74605555,0.00012495,2]
[341820373,1731240631398,-300.0,0.00012494,2]
[341820374,1731240631408,-159.21394445,0.00012495,2]
[341820375,1731240631418,-83.43678065,0.00012507,2]
[341820376,1731240631503,-108.26321935,0.00012507,2]
[341820377,1731240631513,-155.38,0.00012578,2]
[341820378,1731240631523,-1339.55678065,0.00012582,2]
[341820379,1731240631536,-928.7175,0.00012582,2]
[341820380,1731240631559,-26175.4,0.00012582,2]
[341820381,1731240631572,-2392.27989,0.00012582,2]
[341820382,1731240631588,-793.07167879,0.00012582,2]
[341820383,1731240631598,-424.92,0.00012582,2]
[341820384,1731240631608,-156.69,0.00012584,2]
[341820385,1731240631621,-155.38,0.0001264,2]
[341820386,1731240631632,-646.2,0.000129,2]
[341820387,1731240631642,-164.73,0.00012979,2]
[341820388,1731240631651,-150.0,0.00013397,2]
[341820389,1731240631661,-7487.79343195,0.00013398,2]
[341820483,1731240638081,-935.0239817,0.00013398,2]
[341820484,1731240638093,-2398.02,0.00013398,2]
[341820485,1731240638105,-3219.12095,0.00013398,2]
[341820486,1731240638117,-196.17193635,0.00013398,2]
[341820487,1731240638135,-760.37319405,0.00013398,2]
[341820488,1731240638209,-6578.94400595,0.00013398,2]
[341820489,1731240638219,-1000.0,0.00013398,2]
[341820490,1731240638228,-5000.0,0.00013398,2]
[341820491,1731240638239,-2500.0,0.00013398,2]
[341820492,1731240638249,-1068.34637233,0.00013398,2]
[341820493,1731240638258,-160.07297675,0.00013398,2]
[341820494,1731240638267,-150.0,0.000134,2]
[341820495,1731240638277,-300.0,0.000134,2]
[341820496,1731240638287,-150.0,0.000134,2]
[341820497,1731240638297,-150.0,0.000134,2]
[341820498,1731240638306,-1000.0,0.000134,2]
[341820499,1731240638315,-209.51664497,0.000134,2]
[341820500,1731240638328,-790.48335503,0.000134,2]
[341820501,1731240638338,-1076.0,0.000134,2]
[341820502,1731240638349,-932.00810527,0.0001342,2]
[341820503,1731240638438,-136.33826704,0.0001342,2]
[341820504,1731240638447,-417.3485034,0.00013439,2]
[341820505,1731240638457,-128.49779494,0.00013442,2]
[341820506,1731240638468,-323.03643421,0.00013442,2]
[341820507,1731240638479,-616.81214316,0.00013442,2]
[341820508,1731240638488,-1068.34637231,0.00013465,2]
[341820509,1731240638497,-309.0860195,0.00013487,2]
[341820510,1731240638508,-759.26035281,0.00013487,2]
[341820511,1731240638517,-237.84913141,0.00013498,2]
[341820512,1731240638543,-14962.03367616,0.00013498,2]
[341820513,1731240638554,-100000.0,0.00013498,2]
[341820514,1731240638563,-245000.0,0.00013498,2]
[341820515,1731240638573,-1308.3613,0.00013498,2]
[341820516,1731240638585,-500.0,0.00013499,2]
[341820517,1731240638594,-500.0,0.00013499,2]
[341820518,1731240638604,-210.69598231,0.00013499,2]
[341820519,1731240638613,-500.0,0.00013499,2]
[341820520,1731240638625,-500.0,0.00013499,2]
[341820521,1731240638634,-500.0,0.00013499,2]
[341820522,1731240638643,-500.0,0.00013499,2]
[341820523,1731240638653,-484.0,0.000135,3]
[341820524,1731240638666,-150.0,0.000135,2]
[341820525,1731240638676,-1525.16,0.000135,2]
[341820526,1731240638688,-724.25,0.000135,2]
[341820527,1731240638697,-864.64,0.000135,2]
[341820528,1731240638706,-150.0,0.000135,2]
[341820529,1731240638715,-432.99,0.000135,2]
[341820530,1731240638725,-150.0,0.000135,2]
[341820531,1731240638734,-150.0,0.000135,2]
[341820532,1731240638743,-300.0,0.000135,2]
[341820533,1731240638753,-155.85,0.00013505,2]
[341820534,1731240638762,-1068.34637231,0.00013509,2]
[341820535,1731240638771,-1068.34637231,0.00013531,2]
[341820536,1731240638780,-500.0,0.00013547,2]
[341820537,1731240638789,-1068.34637231,0.00013554,2]
[341820538,1731240638798,-500.0,0.00013556,2]
[341820539,1731240638807,-834679.20124492,0.00013559,2]
[341820540,1731240638816,-444.84670114,0.00013563,2]
[341820541,1731240638825,-19509.78143075,0.00013563,2]
[341820542,1731240638834,-203126.66479013,0.00013564,2]
[341820543,1731240638843,-500.0,0.00013565,2]
[341820544,1731240638852,-393.72896906,0.00013565,2]
[341820545,1731240638861,-5197.86952141,0.00013566,2]
[341820546,1731240638870,-5197.86952141,0.00013567,2]
[341820547,1731240638885,-834679.20124492,0.00013567,2]
[341820548,1731240638894,-834679.20124492,0.00013568,2]
[341820549,1731240638903,-19509.78143075,0.00013569,2]
[341820550,1731240638913,-5197.86952141,0.0001357,2]
[341820551,1731240638922,-393.72896906,0.0001357,2]
[341820552,1731240638932,-19509.78143075,0.0001357,2]
[341820553,1731240638942,-393.72896906,0.00013571,2]
[341820554,1731240638951,-203126.66479013,0.00013571,2]
[341820555,1731240638960,-38581.63452838,0.00013571,2]
[341820556,1731240638970,-444.84670114,0.00013573,2]
[341820557,1731240638979,-155.85,0.00013573,2]
[341820558,1731240638989,-203126.66479013,0.00013574,2]
[341820559,1731240638998,-500.0,0.00013574,2]
[341820560,1731240639007,-444.84670114,0.00013576,2]
[341820561,1731240639017,-1068.34637231,0.00013576,2]
[341820562,1731240639026,-38581.63452838,0.00013576,2]
[341820563,1731240639035,-5197.86952141,0.00013577,2]
[341820564,1731240639045,-38581.63452838,0.00013577,2]
[341820565,1731240639054,-203126.66479013,0.00013578,2]
[341820566,1731240639065,-834679.20124492,0.00013579,2]
[341820567,1731240639076,-38581.63452838,0.00013579,2]
[341820568,1731240639084,-444.84670114,0.0001358,2]
[341820569,1731240639093,-393.72896906,0.00013581,2]
[341820570,1731240639103,-5197.86952141,0.00013582,2]
[341820571,1731240639112,-500.0,0.00013582,2]
[341820572,1731240639121,-38581.63452838,0.00013584,2]
[341820573,1731240639136,-38581.63452838,0.00013584,2]
[341820574,1731240639146,-203126.66479013,0.00013586,2]
[341820575,1731240639156,-444.84670114,0.00013587,2]
[341820576,1731240639165,-203126.66479013,0.00013588,2]
[341820577,1731240639177,-19509.78143075,0.00013588,2]
[341820579,1731240639186,-500.0,0.00013591,2]
[341820580,1731240639196,-393.72896906,0.00013591,2]
[341820581,1731240639205,-657220.65456991,0.00013593,2]
[341820585,1731240642159,-500.0,0.00013538,2]
[341820586,1731240642168,-299.61,0.00013593,2]
[341820590,1731240642304,-1728.77262585,0.00013593,2]
[341820592,1731240642316,-1925.36,0.00013593,2]
[341820593,1731240642327,-3348.37216534,0.00013593,2]
[341820594,1731240642338,-292.961085,0.00013593,2]
[341820598,1731240642648,-1304.67931461,0.00013593,2]
[341820599,1731240642660,-282.1400005,0.00013593,2]
[341820600,1731240642676,-484.9450015,0.00013593,2]
[341820601,1731240642702,-917.10558631,0.00013593,2]
[341820602,1731240642714,-655.53461998,0.00013593,2]
[341820603,1731240642728,-786.1842643,0.00013593,2]
[341820604,1731240642739,-2238.99318936,0.00013593,2]
[341820605,1731240642751,-3491.44959459,0.00013593,2]
[341820606,1731240642864,-32615.33309998,0.00013593,2]
[341820607,1731240642876,-832.73198626,0.00013593,2]
[341820608,1731240642956,-3243.39897114,0.00013593,2]
[341820609,1731240642968,-870.35,0.00013593,2]
[341820619,1731240645371,-353.418645,0.00013499,2]
[341820620,1731240645427,-146.581355,0.00013499,2]
[341820621,1731240645437,-3833.418645,0.00013593,2]
[341820622,1731240645448,-6020.3768,0.00013593,2]
[341820623,1731240645482,-3997.9,0.00013593,2]
[341820624,1731240645539,-500.0,0.00013497,2]
[341820625,1731240645549,-922.42011983,0.00013593,2]
[341820626,1731240645560,-2021.6190999,0.00013593,2]
[341820627,1731240645575,-10666.53852978,0.00013593,2]
[341820628,1731240645590,-13189.79095927,0.00013593,2]
[341820629,1731240645625,-305.94750923,0.00013497,2]
[341820630,1731240645636,-93.02749077,0.00013593,2]
[341820631,1731240645648,-1133.63256697,0.00013593,2]
[341820632,1731240645668,-11935.74646999,0.00013593,2]
[341820633,1731240645720,-68326.15448878,0.00013593,2]
[341820634,1731240645729,-5197.86952141,0.00013593,2]
[341820635,1731240645739,-444.84670114,0.00013594,2]
[341820636,1731240645747,-19509.78143075,0.00013594,2]
[341820637,1731240645757,-834679.20124492,0.00013597,2]
[341820638,1731240645766,-1559.439,0.00013597,2]
[341820639,1731240645775,-168.84,0.00013597,2]
[341820640,1731240645783,-177.621912,0.00013598,2]
[341820641,1731240645792,-203.49174528,0.00013598,2]
[341820642,1731240645802,-1068.34637231,0.00013598,2]
[341820643,1731240645810,-160.07297675,0.00013598,2]
[341820644,1731240645820,-153.37889064,0.00013598,2]
[341820645,1731240645829,-393.72896906,0.00013599,2]
[341820646,1731240645838,-19509.78143075,0.000136,2]
[341820647,1731240645847,-906.88646179,0.000136,2]
[341820648,1731240645856,-500.0,0.000136,2]
[341820649,1731240645865,-500.0,0.00013673,2]
[341820650,1731240645873,-150.0,0.00013676,2]
[341820651,1731240645885,-216.36036145,0.00013697,2]
[341820652,1731240645894,-47378.90761595,0.00013697,2]
[341820653,1731240645903,-1000.0,0.00013697,2]
[341820654,1731240645912,-1044210.11689987,0.00013698,2]
[341820655,1731240645921,-13746.85455821,0.00013698,2]
[341820656,1731240645931,-151.0,0.00013698,2]
[341820657,1731240645940,-151.0,0.00013698,2]
[341820658,1731240645949,-151.0,0.00013698,2]
[341820659,1731240645959,-151.0,0.00013698,2]
[341820660,1731240645969,-151.0,0.00013698,2]
[341820661,1731240645978,-151.0,0.00013698,2]
[341820662,1731240645987,-151.0,0.00013698,2]
[341820663,1731240645996,-270.958712,0.00013698,2]
[341820664,1731240646006,-4538.84337212,0.00013698,2]
[341820665,1731240646016,-151.0,0.00013698,2]
[341820666,1731240646025,-151.0,0.00013698,2]
[341820667,1731240646034,-151.0,0.00013698,2]
[341820668,1731240646042,-151.0,0.00013698,2]
[341820669,1731240646051,-151.0,0.00013698,2]
[341820670,1731240646060,-151.0,0.00013698,2]
[341820671,1731240646069,-151.0,0.00013698,2]
[341820672,1731240646078,-255.453491,0.00013698,2]
[341820673,1731240646087,-151.0,0.00013698,2]
[341820674,1731240646096,-151.0,0.00013698,2]
[341820675,1731240646106,-151.0,0.00013698,2]
[341820676,1731240646115,-151.0,0.00013698,2]
[341820677,1731240646124,-151.0,0.00013698,2]
[341820678,1731240646137,-151.0,0.00013698,2]
[341820679,1731240646147,-151.0,0.00013698,2]
[341820680,1731240646157,-151.0,0.00013698,2]
[341820681,1731240646170,-151.0,0.00013698,2]
[341820682,1731240646180,-151.0,0.00013698,2]
[341820683,1731240646189,-189.686901,0.00013698,2]
[341820684,1731240646200,-151.0,0.00013698,2]
[341820685,1731240646211,-151.0,0.00013698,2]
[341820686,1731240646222,-151.0,0.00013698,2]
[341820687,1731240646232,-158.212262,0.00013698,2]
[341820688,1731240646242,-151.0,0.00013698,2]
[341820689,1731240646251,-151.0,0.00013698,2]
[341820690,1731240646261,-299.558946,0.00013698,2]
[341820691,1731240646271,-151.0,0.00013698,2]
[341820692,1731240646281,-151.0,0.00013698,2]
[341820693,1731240646290,-151.0,0.00013698,2]
[341820694,1731240646300,-167.252036,0.00013698,2]
[341820695,1731240646311,-235.327938,0.00013698,2]
[341820696,1731240646320,-153.1758,0.00013698,2]
[341820697,1731240646330,-157.950215,0.00013698,2]
[341820698,1731240646340,-151.0,0.00013698,2]
[341820699,1731240646350,-151.0,0.00013698,2]
[341820700,1731240646359,-151.0,0.00013698,2]
[341820701,1731240646369,-157.149119,0.00013698,2]
[341820702,1731240646378,-151.0,0.00013698,2]
[341820703,1731240646390,-151.0,0.00013698,2]
[341820704,1731240646400,-151.0,0.00013698,2]
[341820705,1731240646410,-500.0,0.00013698,2]
[341820706,1731240646420,-500.0,0.00013698,2]
[341820707,1731240646431,-500.0,0.00013698,2]
[341820708,1731240646441,-500.0,0.00013698,2]
[341820709,1731240646450,-500.0,0.00013698,2]
[341820710,1731240646460,-500.0,0.00013698,2]
[341820711,1731240646470,-500.0,0.00013698,2]
[341820712,1731240646480,-500.0,0.00013698,2]
[341820713,1731240646494,-500.0,0.00013698,2]
[341820714,1731240646509,-500.0,0.00013698,2]
[341820715,1731240646524,-500.0,0.00013698,2]
[341820716,1731240646537,-500.0,0.00013698,2]
[341820717,1731240646549,-500.0,0.00013698,2]
[341820718,1731240646561,-500.0,0.00013698,2]
[341820719,1731240646575,-348.81166944,0.00013698,2]
[341820720,1731240646589,-151.0,0.00013698,2]
[341820721,1731240646605,-500.0,0.00013698,2]
[341820722,1731240646618,-500.0,0.00013698,2]
[341820723,1731240646633,-500.0,0.00013698,2]
[341820724,1731240646648,-500.0,0.00013698,2]
[341820725,1731240646661,-500.0,0.00013698,2]
[341820726,1731240646675,-500.0,0.00013698,2]
[341820727,1731240646688,-500.0,0.00013698,2]
[341820728,1731240646699,-500.0,0.00013698,2]
[341820729,1731240646713,-500.0,0.00013698,2]
[341820730,1731240646726,-500.0,0.00013698,2]
[341820731,1731240646739,-500.0,0.00013698,2]
[341820732,1731240646751,-353.01301073,0.00013698,2]
[341820733,1731240646764,-500.0,0.00013698,2]
[341820734,1731240646778,-500.0,0.00013698,2]
[341820735,1731240646792,-500.0,0.00013698,2]
[341820736,1731240646806,-500.0,0.00013698,2]
[341820737,1731240646820,-500.0,0.00013698,2]
[341820738,1731240646835,-500.0,0.00013698,2]
[341820739,1731240646848,-500.0,0.00013698,2]
[341820740,1731240646861,-500.0,0.00013698,2]
[341820741,1731240646873,-500.0,0.00013698,2]
[341820742,1731240646888,-500.0,0.00013698,2]
[341820743,1731240646900,-500.0,0.00013698,2]
[341820744,1731240646912,-500.0,0.00013698,2]
[341820745,1731240646924,-500.0,0.00013698,2]
[341820746,1731240646937,-500.0,0.00013698,2]
[341820747,1731240646949,-500.0,0.00013698,2]
[341820748,1731240646960,-500.0,0.00013698,2]
[341820749,1731240646970,-500.0,0.00013698,2]
[341820750,1731240646981,-500.0,0.00013698,2]
[341820751,1731240646994,-500.0,0.00013698,2]
[341820752,1731240647008,-500.0,0.00013698,2]
[341820753,1731240647020,-500.0,0.00013698,2]
[341820754,1731240647031,-500.0,0.00013698,2]
[341820755,1731240647041,-500.0,0.00013698,2]
[341820756,1731240647052,-500.0,0.00013698,2]
[341820757,1731240647064,-500.0,0.00013698,2]
[341820758,1731240647077,-454.62072012,0.00013698,2]
[341820759,1731240647090,-500.0,0.00013698,2]
[341820760,1731240647101,-500.0,0.00013698,2]
[341820761,1731240647112,-500.0,0.00013698,2]
[341820762,1731240647122,-500.0,0.00013698,2]
[341820763,1731240647133,-500.0,0.00013698,2]
[341820764,1731240647144,-500.0,0.00013698,2]
[341820765,1731240647155,-500.0,0.00013698,2]